[Event "*** Titled Tuesday Blitz"]
[Site "Chess.com"]
[Date "2021.02.02"]
[Round "7"]
[White "Pliukha_Mikhail"]
[Black "FMKonstantin_Twitch"]
[Result "1-0"]
[WhiteElo "2488"]
[BlackElo "2610"]
[TimeControl "180+1"]
[EndTime "11:20:03 PST"]
[Termination "Pliukha_Mikhail won on time"]

1. e4 {[%clk 0:02:58.8]} 1... d5 {[%clk 0:02:58.8]} 2. exd5 {[%clk 0:02:59]}
2... Qxd5 {[%clk 0:02:59.7]} 3. Nc3 {[%clk 0:02:57.5]} 3... Qe6+ {[%clk
0:02:59.4]} 4. Be2 {[%clk 0:02:56.8]} 4... Qg6 {[%clk 0:02:54.1]} 5. Nf3 {[%clk
0:02:57]} 5... c6 {[%clk 0:02:51.8]} 6. O-O {[%clk 0:02:55.6]} 6... Bh3 {[%clk
0:02:50.1]} 7. Nh4 {[%clk 0:02:55.8]} 7... Qg5 {[%clk 0:02:48.5]} 8. d4 {[%clk
0:02:44]} 8... Qxh4 {[%clk 0:02:48.2]} 9. gxh3 {[%clk 0:02:44.9]} 9... Qxh3
{[%clk 0:02:47.8]} 10. Bg4 {[%clk 0:02:38.4]} 10... Qh4 {[%clk 0:02:47.1]} 11.
Ne4 {[%clk 0:02:38.4]} 11... h5 {[%clk 0:02:30.5]} 12. Bc8 {[%clk 0:02:30.9]}
12... Qxe4 {[%clk 0:02:10.2]} 13. Bxb7 {[%clk 0:02:31.1]} 13... e6 {[%clk
0:02:10.4]} 14. Bxa8 {[%clk 0:02:30.2]} 14... Bd6 {[%clk 0:02:10.7]} 15. Qd3
{[%clk 0:02:16.8]} 15... Qg4+ {[%clk 0:01:58.7]} 16. Kh1 {[%clk 0:02:16.5]}
16... Nf6 {[%clk 0:01:53.5]} 17. h3 {[%clk 0:02:01.2]} 17... Qh4 {[%clk
0:01:51.1]} 18. Qf3 {[%clk 0:01:54.5]} 18... Qxd4 {[%clk 0:01:30.5]} 19. Bxc6+
{[%clk 0:01:53.2]} 19... Ke7 {[%clk 0:01:27]} 20. Ba4 {[%clk 0:01:36.8]} 20...
Qxa4 {[%clk 0:01:23.9]} 21. Bg5 {[%clk 0:01:35.2]} 21... Qc6 {[%clk 0:01:23.1]}
22. Kg2 {[%clk 0:01:33.1]} 22... Qxf3+ {[%clk 0:01:22]} 23. Kxf3 {[%clk
0:01:34]} 23... Nd7 {[%clk 0:01:22.5]} 24. Rad1 {[%clk 0:01:34]} 24... Ne5+
{[%clk 0:01:21.2]} 25. Kg2 {[%clk 0:01:30.9]} 25... Rc8 {[%clk 0:01:16.2]} 26.
c3 {[%clk 0:01:30.5]} 26... Nc4 {[%clk 0:01:16]} 27. b3 {[%clk 0:01:29.6]} 27...
Ne5 {[%clk 0:01:15.1]} 28. c4 {[%clk 0:01:29.9]} 28... Ng6 {[%clk 0:01:15.6]}
29. f4 {[%clk 0:01:20.9]} 29... Bb8 {[%clk 0:01:02.2]} 30. f5 {[%clk 0:01:19.4]}
30... Ne5 {[%clk 0:01:00.8]} 31. fxe6 {[%clk 0:01:19]} 31... fxe6 {[%clk
0:01:01.7]} 32. Rd2 {[%clk 0:01:12.8]} 32... Nf7 {[%clk 0:01:00.4]} 33. Be3
{[%clk 0:01:04.8]} 33... a5 {[%clk 0:00:51.6]} 34. a3 {[%clk 0:01:01.7]} 34...
a4 {[%clk 0:00:48.2]} 35. bxa4 {[%clk 0:00:57.9]} 35... Rxc4 {[%clk 0:00:47.6]}
36. a5 {[%clk 0:00:58.4]} 36... Ra4 {[%clk 0:00:46.8]} 37. Bc5+ {[%clk
0:00:58.1]} 37... Bd6 {[%clk 0:00:45.5]} 38. Bb6 {[%clk 0:00:51.4]} 38... Rxa3
{[%clk 0:00:43.8]} 39. Rfd1 {[%clk 0:00:49.2]} 39... Rg3+ {[%clk 0:00:42.4]} 40.
Kf1 {[%clk 0:00:46.3]} 40... Rxh3 {[%clk 0:00:41.6]} 41. a6 {[%clk 0:00:46.1]}
41... Ra3 {[%clk 0:00:41.5]} 42. a7 {[%clk 0:00:46]} 42... Nd5 {[%clk
0:00:38.4]} 43. Bf2 {[%clk 0:00:39.4]} 43... Ne5 {[%clk 0:00:18]} 44. Rb2 {[%clk
0:00:35.5]} 44... Ng4 {[%clk 0:00:17]} 45. Rb7+ {[%clk 0:00:24.4]} 45... Kf6
{[%clk 0:00:15.8]} 46. Bd4+ {[%clk 0:00:24.9]} 46... e5 {[%clk 0:00:15.9]} 47.
Ra1 {[%clk 0:00:22]} 47... Nde3+ {[%clk 0:00:04.6]} 48. Kg1 {[%clk 0:00:21.3]}
48... Rxa7 {[%clk 0:00:03.9]} 49. Bxa7 {[%clk 0:00:19.8]} 49... Nf5 {[%clk
0:00:03.6]} 50. Ra6 {[%clk 0:00:18.5]} 50... e4 {[%clk 0:00:02.8]} 51. Bb8
{[%clk 0:00:18.7]} 51... Ke5 {[%clk 0:00:02.4]} 52. Rb5+ {[%clk 0:00:18.9]} 1-0

[Event "*** Titled Tuesday Blitz"]
[Site "Chess.com"]
[Date "2021.02.02"]
[Round "7"]
[White "Sergey85Rodchenkov"]
[Black "lamomiablanca"]
[Result "1-0"]
[WhiteElo "2508"]
[BlackElo "2281"]
[TimeControl "180+1"]
[EndTime "11:20:04 PST"]
[Termination "Sergey85Rodchenkov won on time"]

1. e4 {[%clk 0:03:00.9]} 1... c5 {[%clk 0:02:58.8]} 2. Nf3 {[%clk 0:03:00.5]}
2... Nc6 {[%clk 0:02:57.2]} 3. d4 {[%clk 0:03:00.7]} 3... cxd4 {[%clk
0:02:58.1]} 4. Nxd4 {[%clk 0:03:01]} 4... g6 {[%clk 0:02:57.9]} 5. Nc3 {[%clk
0:03:00.8]} 5... Bg7 {[%clk 0:02:57.2]} 6. Nb3 {[%clk 0:03:00.6]} 6... Nf6
{[%clk 0:02:54.9]} 7. Be2 {[%clk 0:03:00.1]} 7... O-O {[%clk 0:02:44.3]} 8. O-O
{[%clk 0:02:59.7]} 8... d6 {[%clk 0:02:43.1]} 9. Bg5 {[%clk 0:02:58.5]} 9... a6
{[%clk 0:02:34.1]} 10. a4 {[%clk 0:02:53.8]} 10... Be6 {[%clk 0:02:19.2]} 11.
Re1 {[%clk 0:02:53.1]} 11... Rc8 {[%clk 0:02:16]} 12. Qd2 {[%clk 0:02:52.3]}
12... Ne5 {[%clk 0:02:11.6]} 13. Rad1 {[%clk 0:02:49.2]} 13... Nc4 {[%clk
0:02:10.3]} 14. Bxc4 {[%clk 0:02:48.8]} 14... Bxc4 {[%clk 0:02:11.2]} 15. Bh6
{[%clk 0:02:46.8]} 15... Bxb3 {[%clk 0:01:48.6]} 16. Bxg7 {[%clk 0:02:45.1]}
16... Kxg7 {[%clk 0:01:46.5]} 17. cxb3 {[%clk 0:02:44.7]} 17... Qb6 {[%clk
0:01:42.5]} 18. Nd5 {[%clk 0:02:37.1]} 18... Nxd5 {[%clk 0:01:33.4]} 19. exd5
{[%clk 0:02:36.9]} 19... Rfe8 {[%clk 0:01:31.5]} 20. Re3 {[%clk 0:02:35.8]}
20... Qc5 {[%clk 0:01:06.8]} 21. h4 {[%clk 0:02:26.6]} 21... h5 {[%clk
0:01:01.3]} 22. Rde1 {[%clk 0:02:23.5]} 22... Qc7 {[%clk 0:00:53.9]} 23. Qd4+
{[%clk 0:02:19.7]} 23... Kg8 {[%clk 0:00:52.7]} 24. Qf4 {[%clk 0:02:09.2]} 24...
Qd7 {[%clk 0:00:49.2]} 25. Qg5 {[%clk 0:02:04.3]} 25... Rc7 {[%clk 0:00:46.4]}
26. Rg3 {[%clk 0:01:47.7]} 26... Kh7 {[%clk 0:00:35.8]} 27. Qe3 {[%clk
0:01:40.3]} 27... Rc5 {[%clk 0:00:34.1]} 28. Rf3 {[%clk 0:01:32.8]} 28... Kg8
{[%clk 0:00:32.4]} 29. Qd4 {[%clk 0:01:30.2]} 29... b5 {[%clk 0:00:30.5]} 30.
Rfe3 {[%clk 0:01:17.1]} 30... Qb7 {[%clk 0:00:25.2]} 31. Rd1 {[%clk 0:00:48.9]}
31... bxa4 {[%clk 0:00:20.6]} 32. Qxa4 {[%clk 0:00:48.7]} 32... Rb8 {[%clk
0:00:17.9]} 33. b4 {[%clk 0:00:40.9]} 33... Rxd5 {[%clk 0:00:16.6]} 34. Rxd5
{[%clk 0:00:37.8]} 34... Qxd5 {[%clk 0:00:17.5]} 35. Qxa6 {[%clk 0:00:36.6]}
35... Rxb4 {[%clk 0:00:15.2]} 36. Qe2 {[%clk 0:00:28.8]} 36... e5 {[%clk
0:00:14.1]} 37. Rd3 {[%clk 0:00:19.4]} 37... Rd4 {[%clk 0:00:11.6]} 38. Rc3
{[%clk 0:00:19]} 38... Rd1+ {[%clk 0:00:09.7]} 39. Kh2 {[%clk 0:00:18.2]} 39...
Rd2 {[%clk 0:00:10.2]} 40. Qe3 {[%clk 0:00:14.6]} 40... Qd4 {[%clk 0:00:09.2]}
41. Qg5 {[%clk 0:00:11.8]} 41... Qxf2 {[%clk 0:00:06.3]} 42. Rc8+ {[%clk
0:00:08.8]} 42... Kg7 {[%clk 0:00:06.2]} 43. Rc7 {[%clk 0:00:07.1]} 43... Qf4+
{[%clk 0:00:04.9]} 44. Qxf4 {[%clk 0:00:06.6]} 44... exf4 {[%clk 0:00:05.8]} 45.
b4 {[%clk 0:00:06.7]} 45... f3 {[%clk 0:00:05.7]} 46. Kg1 {[%clk 0:00:06.1]}
46... Rxg2+ {[%clk 0:00:05.8]} 47. Kf1 {[%clk 0:00:06.4]} 47... Rg4 {[%clk
0:00:06]} 48. b5 {[%clk 0:00:05.6]} 48... Rxh4 {[%clk 0:00:04.7]} 49. b6 {[%clk
0:00:04.7]} 49... Rb4 {[%clk 0:00:04.7]} 50. b7 {[%clk 0:00:05.4]} 50... g5
{[%clk 0:00:04.3]} 51. Kf2 {[%clk 0:00:05.9]} 51... g4 {[%clk 0:00:04.8]} 52.
Kg3 {[%clk 0:00:06.8]} 52... Kg6 {[%clk 0:00:03]} 53. Rd7 {[%clk 0:00:07]} 1-0

[Event "*** Titled Tuesday Blitz"]
[Site "Chess.com"]
[Date "2021.02.02"]
[Round "7"]
[White "CheckThis4"]
[Black "imdvb6307"]
[Result "1-0"]
[WhiteElo "2570"]
[BlackElo "2374"]
[TimeControl "180+1"]
[EndTime "11:20:05 PST"]
[Termination "CheckThis4 won by resignation"]

1. d4 {[%clk 0:02:58.4]} 1... d5 {[%clk 0:02:59]} 2. c4 {[%clk 0:02:56.2]} 2...
c6 {[%clk 0:02:58.8]} 3. Nc3 {[%clk 0:02:55.8]} 3... Nf6 {[%clk 0:02:58.4]} 4.
Nf3 {[%clk 0:02:56.2]} 4... e6 {[%clk 0:02:58.5]} 5. Bg5 {[%clk 0:02:55.7]} 5...
Nbd7 {[%clk 0:02:58.3]} 6. cxd5 {[%clk 0:02:52.5]} 6... exd5 {[%clk 0:02:55.8]}
7. e3 {[%clk 0:02:52.6]} 7... Qa5 {[%clk 0:02:55.8]} 8. Bd3 {[%clk 0:02:46.7]}
8... Ne4 {[%clk 0:02:51.7]} 9. O-O {[%clk 0:02:45.8]} 9... Nxg5 {[%clk
0:02:43.2]} 10. Nxg5 {[%clk 0:02:45.6]} 10... Nf6 {[%clk 0:02:34.1]} 11. e4
{[%clk 0:02:25.8]} 11... dxe4 {[%clk 0:02:33.5]} 12. Ncxe4 {[%clk 0:02:25.5]}
12... Nxe4 {[%clk 0:02:31.9]} 13. Nxe4 {[%clk 0:02:21.5]} 13... Be7 {[%clk
0:02:29.8]} 14. Re1 {[%clk 0:02:15.9]} 14... Be6 {[%clk 0:02:28.6]} 15. a3
{[%clk 0:02:00.7]} 15... O-O {[%clk 0:02:24.7]} 16. b4 {[%clk 0:01:53.6]} 16...
Qd5 {[%clk 0:02:24.3]} 17. Nc5 {[%clk 0:01:52.2]} 17... Bxc5 {[%clk 0:02:17.2]}
18. dxc5 {[%clk 0:01:43.2]} 18... Rfd8 {[%clk 0:02:12.2]} 19. Be4 {[%clk
0:01:33.4]} 19... Qxd1 {[%clk 0:02:00.2]} 20. Raxd1 {[%clk 0:01:34.3]} 20... Kf8
{[%clk 0:01:45.8]} 21. f4 {[%clk 0:01:34.3]} 21... g6 {[%clk 0:01:43.9]} 22. Kf2
{[%clk 0:01:32.7]} 22... Bb3 {[%clk 0:01:31.5]} 23. Rb1 {[%clk 0:01:14.4]} 23...
Bd5 {[%clk 0:01:27.6]} 24. Bc2 {[%clk 0:01:12.6]} 24... Bxg2 {[%clk 0:01:24.4]}
25. Re2 {[%clk 0:01:02.3]} 25... Bd5 {[%clk 0:01:21.5]} 26. Kg3 {[%clk 0:00:55]}
26... Re8 {[%clk 0:01:16.4]} 27. Rf2 {[%clk 0:00:55]} 27... Re3+ {[%clk
0:01:15.2]} 28. Kg4 {[%clk 0:00:54.6]} 28... Rxa3 {[%clk 0:01:12.7]} 29. f5
{[%clk 0:00:53.9]} 29... Kg7 {[%clk 0:01:08.8]} 30. f6+ {[%clk 0:00:53.6]} 30...
Kg8 {[%clk 0:01:06.4]} 31. Re1 {[%clk 0:00:52.9]} 31... h5+ {[%clk 0:01:05.6]}
32. Kg5 {[%clk 0:00:51.7]} 32... Kf8 {[%clk 0:01:00.6]} 33. Re7 {[%clk
0:00:51.1]} 33... b6 {[%clk 0:00:57.1]} 34. Kh6 {[%clk 0:00:38.3]} 34... bxc5
{[%clk 0:00:55.9]} 35. bxc5 {[%clk 0:00:38]} 35... Re8 {[%clk 0:00:53.7]} 36.
Rxe8+ {[%clk 0:00:30.3]} 36... Kxe8 {[%clk 0:00:52.9]} 37. Kg7 {[%clk
0:00:31.2]} 37... Re3 {[%clk 0:00:49.8]} 38. Rd2 {[%clk 0:00:23.7]} 38... g5
{[%clk 0:00:45.2]} 39. Bg6 {[%clk 0:00:21.9]} 39... h4 {[%clk 0:00:19.9]} 40.
Rxd5 {[%clk 0:00:18.9]} 40... cxd5 {[%clk 0:00:19.4]} 41. Bxf7+ {[%clk
0:00:19.8]} 41... Kd8 {[%clk 0:00:19.6]} 42. Bxd5 {[%clk 0:00:19.4]} 42... Re5
{[%clk 0:00:18.7]} 43. f7 {[%clk 0:00:18.8]} 43... Rf5 {[%clk 0:00:18.6]} 44.
f8=Q+ {[%clk 0:00:17.5]} 44... Rxf8 {[%clk 0:00:18.4]} 45. Kxf8 {[%clk
0:00:18.4]} 45... g4 {[%clk 0:00:18.6]} 46. Kf7 {[%clk 0:00:16.8]} 46... a5
{[%clk 0:00:18.2]} 47. Kf6 {[%clk 0:00:10.8]} 47... g3 {[%clk 0:00:16]} 48. hxg3
{[%clk 0:00:10.1]} 48... hxg3 {[%clk 0:00:15.4]} 49. Ke6 {[%clk 0:00:10.4]}
49... Kc7 {[%clk 0:00:14.6]} 50. Ke5 {[%clk 0:00:06.9]} 50... a4 {[%clk
0:00:14.7]} 51. Kd4 {[%clk 0:00:07.1]} 51... a3 {[%clk 0:00:14.3]} 52. Kc3
{[%clk 0:00:07.3]} 52... a2 {[%clk 0:00:11.7]} 53. Kb2 {[%clk 0:00:07.5]} 53...
Kb8 {[%clk 0:00:07.5]} 54. Kxa2 {[%clk 0:00:07.5]} 54... Ka7 {[%clk 0:00:07.2]}
55. Kb3 {[%clk 0:00:07.3]} 1-0

[Event "*** Titled Tuesday Blitz"]
[Site "Chess.com"]
[Date "2021.02.02"]
[Round "7"]
[White "KarateBaby"]
[Black "profofchess"]
[Result "0-1"]
[WhiteElo "2224"]
[BlackElo "2396"]
[TimeControl "180+1"]
[EndTime "11:20:06 PST"]
[Termination "profofchess won by checkmate"]

1. b3 {[%clk 0:02:57]} 1... e5 {[%clk 0:02:59.8]} 2. Bb2 {[%clk 0:02:57.9]} 2...
Nc6 {[%clk 0:03:00.1]} 3. Nf3 {[%clk 0:02:57.4]} 3... e4 {[%clk 0:02:58.9]} 4.
Nd4 {[%clk 0:02:55.7]} 4... Nxd4 {[%clk 0:02:59.1]} 5. Bxd4 {[%clk 0:02:55.4]}
5... Nf6 {[%clk 0:02:54.8]} 6. e3 {[%clk 0:02:54.5]} 6... d5 {[%clk 0:02:54.4]}
7. d3 {[%clk 0:02:52.9]} 7... c5 {[%clk 0:02:50.7]} 8. Bb2 {[%clk 0:02:52.4]}
8... exd3 {[%clk 0:02:40.2]} 9. Bxd3 {[%clk 0:02:53.3]} 9... Be7 {[%clk
0:02:40.4]} 10. Nd2 {[%clk 0:02:52.9]} 10... Be6 {[%clk 0:02:39.2]} 11. O-O
{[%clk 0:02:51.6]} 11... O-O {[%clk 0:02:37.7]} 12. c4 {[%clk 0:02:48.2]} 12...
dxc4 {[%clk 0:02:29.5]} 13. Nxc4 {[%clk 0:02:49.1]} 13... Qc7 {[%clk 0:02:16.2]}
14. Qe2 {[%clk 0:02:36.6]} 14... b5 {[%clk 0:01:57.7]} 15. Ne5 {[%clk
0:02:34.5]} 15... Bd6 {[%clk 0:01:57.8]} 16. Nf3 {[%clk 0:02:27.3]} 16... c4
{[%clk 0:01:55.5]} 17. Bb1 {[%clk 0:02:21.3]} 17... c3 {[%clk 0:01:53.1]} 18.
Bc1 {[%clk 0:02:17]} 18... b4 {[%clk 0:01:47]} 19. Bc2 {[%clk 0:02:10.5]} 19...
a5 {[%clk 0:01:25.6]} 20. Rd1 {[%clk 0:02:07.6]} 20... Rfd8 {[%clk 0:01:24.7]}
21. Nd4 {[%clk 0:02:05.6]} 21... Bxh2+ {[%clk 0:01:21.3]} 22. Kf1 {[%clk
0:02:00.6]} 22... Bg4 {[%clk 0:01:02.6]} 23. f3 {[%clk 0:01:52.9]} 23... Bh5
{[%clk 0:01:01.2]} 24. e4 {[%clk 0:01:28.2]} 24... Rd7 {[%clk 0:00:35]} 25. Be3
{[%clk 0:01:27.7]} 25... Rad8 {[%clk 0:00:31.5]} 26. Nf5 {[%clk 0:01:27.9]}
26... Bg6 {[%clk 0:00:25.8]} 27. Nd4 {[%clk 0:01:20.6]} 27... Be5 {[%clk
0:00:24.7]} 28. Nb5 {[%clk 0:01:14.3]} 28... Qb8 {[%clk 0:00:23.7]} 29. Na7
{[%clk 0:01:09.3]} 29... Nh5 {[%clk 0:00:15.2]} 30. Nc6 {[%clk 0:01:07.7]} 30...
Ng3+ {[%clk 0:00:12.5]} 31. Kf2 {[%clk 0:01:00.8]} 31... Nxe2 {[%clk 0:00:12.6]}
32. Nxb8 {[%clk 0:00:56.5]} 32... Rxd1 {[%clk 0:00:12.5]} 33. Rxd1 {[%clk
0:00:54.7]} 33... Rxd1 {[%clk 0:00:11.5]} 34. Bxd1 {[%clk 0:00:54.9]} 34... Bxb8
{[%clk 0:00:07.5]} 35. Kxe2 {[%clk 0:00:45.2]} 35... Bc7 {[%clk 0:00:07.6]} 36.
Bc2 {[%clk 0:00:43]} 36... f6 {[%clk 0:00:07.8]} 37. Bd3 {[%clk 0:00:34]} 37...
Bf7 {[%clk 0:00:07.6]} 38. Kd1 {[%clk 0:00:33.4]} 38... g5 {[%clk 0:00:07.3]}
39. Kc2 {[%clk 0:00:32.7]} 39... h5 {[%clk 0:00:06.9]} 40. Bc5 {[%clk
0:00:31.5]} 40... Kg7 {[%clk 0:00:06.4]} 41. a3 {[%clk 0:00:27.7]} 41... bxa3
{[%clk 0:00:02.6]} 42. Bxa3 {[%clk 0:00:26.4]} 42... Be5 {[%clk 0:00:02.6]} 43.
Bc5 {[%clk 0:00:22]} 43... Be8 {[%clk 0:00:02.9]} 44. Bf2 {[%clk 0:00:13.8]}
44... a4 {[%clk 0:00:03.5]} 45. bxa4 {[%clk 0:00:14.1]} 45... Bxa4+ {[%clk
0:00:03.2]} 46. Kc1 {[%clk 0:00:15]} 46... Bb3 {[%clk 0:00:02.6]} 47. Bc2 {[%clk
0:00:14]} 47... Bc4 {[%clk 0:00:02.2]} 48. g3 {[%clk 0:00:12.8]} 48... Bb5
{[%clk 0:00:02.8]} 49. Bb3 {[%clk 0:00:12.7]} 49... Kg6 {[%clk 0:00:03]} 50. Kc2
{[%clk 0:00:13]} 50... Kg7 {[%clk 0:00:03.5]} 51. Be6 {[%clk 0:00:12.1]} 51...
Kf8 {[%clk 0:00:03.3]} 52. Bf5 {[%clk 0:00:13]} 52... Ke7 {[%clk 0:00:03.7]} 53.
Bg6 {[%clk 0:00:13.2]} 53... h4 {[%clk 0:00:04.1]} 54. gxh4 {[%clk 0:00:13.6]}
54... gxh4 {[%clk 0:00:05]} 55. Bxh4 {[%clk 0:00:14.3]} 55... Kd6 {[%clk
0:00:04.9]} 56. Bf5 {[%clk 0:00:14.3]} 56... Ba4+ {[%clk 0:00:05.2]} 57. Kd3
{[%clk 0:00:13.8]} 57... c2 {[%clk 0:00:04.3]} 58. Kd2 {[%clk 0:00:10.8]} 58...
Bf4+ {[%clk 0:00:04.1]} 59. Ke2 {[%clk 0:00:07.5]} 59... c1=Q {[%clk 0:00:05]}
60. e5+ {[%clk 0:00:08.4]} 60... Kxe5 {[%clk 0:00:04.7]} 61. Be4 {[%clk
0:00:08.7]} 61... Qd2+ {[%clk 0:00:04.8]} 62. Kf1 {[%clk 0:00:09.3]} 62... Bb5+
{[%clk 0:00:05.2]} 63. Kg1 {[%clk 0:00:08.9]} 63... Qh2# {[%clk 0:00:05.5]} 0-1

[Event "*** Titled Tuesday Blitz"]
[Site "Chess.com"]
[Date "2021.02.02"]
[Round "7"]
[White "TST2014"]
[Black "vovachesss"]
[Result "0-1"]
[WhiteElo "2550"]
[BlackElo "2742"]
[TimeControl "180+1"]
[EndTime "11:20:09 PST"]
[Termination "vovachesss won by checkmate"]

1. d4 {[%clk 0:03:00.9]} 1... Nf6 {[%clk 0:02:54.9]} 2. c4 {[%clk 0:03:00.3]}
2... d6 {[%clk 0:02:53.9]} 3. Nf3 {[%clk 0:02:59.3]} 3... g6 {[%clk 0:02:51.7]}
4. Nc3 {[%clk 0:02:58.4]} 4... Bf5 {[%clk 0:02:52]} 5. Ng5 {[%clk 0:02:57.4]}
5... Bg7 {[%clk 0:02:38.1]} 6. e4 {[%clk 0:02:56.6]} 6... Bd7 {[%clk 0:02:38.5]}
7. Be2 {[%clk 0:02:48.3]} 7... e5 {[%clk 0:02:37.8]} 8. d5 {[%clk 0:02:45.8]}
8... O-O {[%clk 0:02:33.9]} 9. Rb1 {[%clk 0:02:38.8]} 9... a5 {[%clk 0:02:30.3]}
10. b3 {[%clk 0:02:37.3]} 10... h6 {[%clk 0:02:21.3]} 11. Nf3 {[%clk 0:02:36.7]}
11... Nh5 {[%clk 0:02:21.9]} 12. O-O {[%clk 0:02:23.9]} 12... Nf4 {[%clk
0:02:19.8]} 13. Re1 {[%clk 0:02:23.3]} 13... Na6 {[%clk 0:02:17.4]} 14. a3
{[%clk 0:02:16]} 14... Nc5 {[%clk 0:02:05.7]} 15. Bf1 {[%clk 0:02:03.1]} 15...
f5 {[%clk 0:02:01.6]} 16. Bxf4 {[%clk 0:02:00.7]} 16... exf4 {[%clk 0:02:00.2]}
17. e5 {[%clk 0:02:00.7]} 17... Ne4 {[%clk 0:01:32.7]} 18. Nxe4 {[%clk
0:01:42.5]} 18... fxe4 {[%clk 0:01:32.7]} 19. Rxe4 {[%clk 0:01:43.2]} 19... Bf5
{[%clk 0:01:32.9]} 20. Rxf4 {[%clk 0:01:35.2]} 20... dxe5 {[%clk 0:01:18.5]} 21.
Rxf5 {[%clk 0:01:11.3]} 21... gxf5 {[%clk 0:01:18.6]} 22. g3 {[%clk 0:01:04.5]}
22... Qf6 {[%clk 0:01:18.5]} 23. Bh3 {[%clk 0:01:02.2]} 23... f4 {[%clk
0:01:14.1]} 24. Be6+ {[%clk 0:00:52.2]} 24... Kh8 {[%clk 0:01:14.1]} 25. g4
{[%clk 0:00:52.8]} 25... e4 {[%clk 0:01:12.1]} 26. Nd2 {[%clk 0:00:52.2]} 26...
Qd4 {[%clk 0:00:35.2]} 27. Qe2 {[%clk 0:00:47.5]} 27... e3 {[%clk 0:00:29.1]}
28. Nf3 {[%clk 0:00:45.3]} 28... exf2+ {[%clk 0:00:28.3]} 29. Qxf2 {[%clk
0:00:43.7]} 29... Qd3 {[%clk 0:00:28]} 30. Qf1 {[%clk 0:00:38.7]} 30... Qe3+
{[%clk 0:00:21]} 31. Kg2 {[%clk 0:00:32.1]} 31... Rae8 {[%clk 0:00:18.9]} 32.
Qf2 {[%clk 0:00:23.3]} 32... Qd3 {[%clk 0:00:18.9]} 33. Qf1 {[%clk 0:00:17.6]}
33... Qc3 {[%clk 0:00:19.2]} 34. Qe2 {[%clk 0:00:15.7]} 34... c6 {[%clk
0:00:18.1]} 35. h4 {[%clk 0:00:12.2]} 35... cxd5 {[%clk 0:00:18.5]} 36. cxd5
{[%clk 0:00:12.6]} 36... Qc5 {[%clk 0:00:18]} 37. h5 {[%clk 0:00:12.3]} 37...
Qxd5 {[%clk 0:00:16.6]} 38. Bxd5 {[%clk 0:00:11.4]} 38... Rxe2+ {[%clk
0:00:17.5]} 39. Kh3 {[%clk 0:00:11.8]} 39... b6 {[%clk 0:00:17.4]} 40. Rc1
{[%clk 0:00:11.1]} 40... Rd8 {[%clk 0:00:17.4]} 41. Bb7 {[%clk 0:00:09.7]} 41...
Re3 {[%clk 0:00:14.6]} 42. Kg2 {[%clk 0:00:09]} 42... Rxb3 {[%clk 0:00:14.8]}
43. Rc7 {[%clk 0:00:08.6]} 43... Rxa3 {[%clk 0:00:14.4]} 44. g5 {[%clk
0:00:08.7]} 44... Rxf3 {[%clk 0:00:13.2]} 45. Kxf3 {[%clk 0:00:08.1]} 45... hxg5
{[%clk 0:00:13.5]} 46. Kg4 {[%clk 0:00:08.7]} 46... a4 {[%clk 0:00:11.6]} 47.
Kxg5 {[%clk 0:00:09]} 47... a3 {[%clk 0:00:11.9]} 48. h6 {[%clk 0:00:09.5]}
48... Be5 {[%clk 0:00:09]} 49. Be4 {[%clk 0:00:08.9]} 49... Bxc7 {[%clk
0:00:08.6]} 50. Kg6 {[%clk 0:00:07.5]} 50... a2 {[%clk 0:00:08.6]} 51. Bb1
{[%clk 0:00:07.4]} 51... a1=Q {[%clk 0:00:09.5]} 52. Ba2 {[%clk 0:00:07.4]}
52... Rd6+ {[%clk 0:00:08.6]} 53. Kf5 {[%clk 0:00:07.8]} 53... Qf6+ {[%clk
0:00:08.9]} 54. Ke4 {[%clk 0:00:07.9]} 54... Rd4+ {[%clk 0:00:09]} 55. Kf3
{[%clk 0:00:08.5]} 55... Qg5 {[%clk 0:00:09.6]} 56. Be6 {[%clk 0:00:07.5]} 56...
Qg3+ {[%clk 0:00:10.5]} 57. Ke2 {[%clk 0:00:07.9]} 57... Qe3+ {[%clk 0:00:11]}
58. Kf1 {[%clk 0:00:08.4]} 58... Rd2 {[%clk 0:00:11.6]} 59. Bc4 {[%clk
0:00:07.2]} 59... Qf2# {[%clk 0:00:12.5]} 0-1